Cogmind - Beta 14 *** ADVENTURER MODE // 2024.09.14 @ 23:40:56 Player: Keheck Result: Destroyed by H-55 Commando with Assault Rifle Performance ------------- Evolutions (2) 1000 Regions Visited (4) 800 Robots Destroyed (28) 140 Value Destroyed (893) 893 Prototype IDs (3) 60 Alien Tech Used (0) 0 Bonus (35) 35 TOTAL SCORE: 2928 Bonus ------- High Alert Combat Kills 35 Cogmind --------- Core Integrity 0/550 Matter 241/300 Energy 100/100 System Corruption 1% Temperature Cool (0) Movement Core (200) Ox3 Location -8/Materials Parts ------- > --- POWER (2) -------- (None) > --- PROPULSION (4) --- (None) > --- UTILITY (3) ------ Medium Storage Unit Improved Signal Interpreter > --- WEAPON (2) ------- (None) > --- INVENTORY (10) --- Heat Sink Small Storage Unit Structural Scanner Advanced Targeting Computer Particle Charger Field Recycling Unit (0) Heavy Assault Rifle Shock Bomb Launcher Shock Bomb Launcher Peak State ------------ > --- POWER ------------ Improved Ion Engine > --- PROPULSION ------- Titanium Leg Titanium Leg Titanium Leg > --- UTILITY ---------- Medium Storage Unit Small Matter Pod ECM Suite > --- WEAPON ----------- Heavy EM Shotgun Heavy Assault Rifle > --- INVENTORY -------- Ion Engine Ion Engine Light Ion Engine Light Treads Light Treads Flight Unit Small Storage Unit Structural Scanner Beam Rifle Assault Rifle [Rating: 21] Favorites ----------- Power Ion Engine Engine Ion Engine Propulsion Aluminum Leg Treads Light Treads Leg Aluminum Leg Flight Unit Flight Unit Utility Medium Storage Unit Device ECM Suite Storage Medium Storage Unit Processor Improved Signal Interpreter Protection Light Armor Plating Weapon Assault Rifle Energy Gun Small Laser Ballistic Gun Assault Rifle Launcher Shock Bomb Launcher Build | -11 -10 -10 -9 -8 ------- Run | Yrd Mat Min Mat Mat Slots Evolved 4 | . . . 2 2 Power 1 | . . . . 1 Propulsion 2 | . . . 1 1 Utility 1 | . . . 1 . Weapon . | . . . . . Parts Attached 39 | 6 2 . 21 10 Power 4 | 1 . . 3 . Engine 4 | 1 . . 3 . Core . | . . . . . Reactor . | . . . . . Propulsion 13 | 2 . . 8 3 Treads 5 | . . . 3 2 Leg 7 | 2 . . 4 1 Wheel . | . . . . . Hover . | . . . . . Flight 1 | . . . 1 . Utility 10 | 1 2 . 4 3 Device 4 | . 1 . 1 2 Storage 4 | 1 1 . 1 1 Processor 1 | . . . 1 . Hackware . | . . . . . Protection 1 | . . . 1 . Artifact . | . . . . . Weapon 12 | 2 . . 6 4 Energy Gun 7 | 1 . . 3 3 Energy Cannon . | . . . . . Ballistic Gun 4 | 1 . . 3 . Ballistic Cannon . | . . . . . Launcher 1 | . . . . 1 Special Weapon . | . . . . . Impact Weapon . | . . . . . Slashing Weapon . | . . . . . Piercing Weapon . | . . . . . Special Melee Weapon . | . . . . . Unidentified Prototypes 1 | . . . 1 . Parts Lost 13 | . . . 4 9 Power 2 | . . . 1 1 Propulsion 5 | . . . 1 4 Utility 2 | . . . 1 1 Weapon 4 | . . . 1 3 Highest Loss Streak 8 | . . . 2 8 To Critical Strikes 1 | . . . 1 . Average Slot Usage (%) 88 | . 99 100 89 74 Engine 10 | . 14 14 9 7 Treads 4 | . . . . 14 Leg 20 | . 28 28 27 2 Flight 2 | . . . . 7 Device 11 | . 13 14 11 8 Storage 14 | . 14 14 18 9 Processor 2 | . . . . 9 Energy Gun 10 | . 14 14 10 5 Ballistic Gun 11 | . 14 14 11 7 Peak Build Rating 21 | 6 7 8 21 20 Average Rating 12 | 4 6 7 15 15 On Entrance 6 | . 6 7 8 12 Naked Turns . | . . . . . Heaviest Build 27 | 13 20 20 27 26 Greatest Support 51 | 20 20 20 51 40 Greatest Overweight (x) 5 | . . . 1 5 Average Overweight (x) . | . . . . . Largest Inventory Capacity 10 | 8 10 10 10 10 Average Capacity 9 | 6 9 10 10 10 Most Carried 10 | 4 6 10 10 10 Average Carried 7 | 2 5 7 9 8 Final Capacity 10 | 8 10 10 10 10 Final Carried 10 | 4 6 10 4 9 Class Distribution -------------------- 92% | Mutant 7% | Scavenger-Mutant Dominant Class ---------------- Mutant | -10/Materials Mutant | -10/Mines Mutant | -9/Materials Mutant | -8/Materials Resources | -11 -10 -10 -9 -8 ----------- Run | Yrd Mat Min Mat Mat Matter Collected 821 | 209 49 122 306 135 Remotely . | . . . . . Salvage Created 1065 | . 49 92 709 215 Parts 64 | . 4 5 44 11 Haulers Intercepted . | . . . . . Recyclers Shooed . | . . . . . Parts Field Recycled . | . . . . . Retrieved Matter . | . . . . . Parts Self-Destructed . | . . . . . Prevented . | . . . . . Kills | -11 -10 -10 -9 -8 ------- Run | Yrd Mat Min Mat Mat Combat Hostiles Destroyed 26 | . 3 3 17 3 Guns 22 | . 3 3 14 2 AOE 2 | . . . 2 . Classes Destroyed 7 | . 1 1 3 2 Builder 1 | . . . . 1 Watcher 1 | . . . . 1 Swarmer 7 | . 3 1 3 . Grunt 11 | . . 2 8 1 Brawler 1 | . . . 1 . Duelist 1 | . . . 1 . Sentry 6 | . . . 4 2 Best Kill Streak 5 | . 3 1 5 3 Combat Bots Only 5 | . 3 1 5 3 Max Kills in Single Turn 1 | . 1 1 1 1 Gunslinging . | . . . . . Exploded 1 | . . . 1 . Melee . | . . . . . Uniques/NPCs Destroyed . | . . . . . Combat | -11 -10 -10 -9 -8 -------- Run | Yrd Mat Min Mat Mat Hostile Shots Fired 347 | . 15 26 131 175 Missed 105 | . 4 5 35 61 Damage Taken 2866 | . 75 200 1214 1377 Core 843 | . 11 15 260 557 Absorbed by Shields . | . . . . . Ignored by Resistances 821 | . 22 61 349 389 Core Remaining (%) 74 | 100 . 89 35 . Volleys Fired 95 | . 8 17 48 22 Largest 2 | . 2 2 2 2 Hottest 83 | . 60 60 79 83 Shots Fired 173 | . 16 34 85 38 Gun 168 | . 16 34 85 33 Cannon . | . . . . . Launcher 5 | . . . . 5 Special . | . . . . . Kinetic 95 | . 8 17 48 22 Thermal 57 | . 8 17 21 11 Explosive . | . . . . . Electromagnetic 21 | . . . 16 5 Robot Hit Streak 24 | . 3 14 24 17 Robot Miss Streak 3 | . 2 3 2 3 Penetration Max . | . . . . . Secondary Targets . | . . . . . Shots Hit Robots 130 | . 9 24 67 30 Core Hits 47 | . 3 6 27 11 Critical Kills . | . . . . . Critical Parts Destroyed . | . . . . . Critical Strikes 3 | . . . 2 1 Burn 3 | . . . 2 1 Melee Attacks . | . . . . . Impact . | . . . . . Slashing . | . . . . . Piercing . | . . . . . Sneak Attacks . | . . . . . Combat Hostiles . | . . . . . Follow-up Attacks . | . . . . . Damage Inflicted 2288 | . 114 270 1200 704 Guns 1799 | . 114 270 1004 411 Cannons . | . . . . . Explosions 489 | . . . 196 293 Melee . | . . . . . Ramming . | . . . . . Kinetic 923 | . 67 154 503 199 Thermal 779 | . 47 116 404 212 Explosive . | . . . . . Electromagnetic 586 | . . . 293 293 Impact . | . . . . . Slashing . | . . . . . Piercing . | . . . . . Highest Corruption 1 | . . . . 1 Average Corruption 1 | . . . . 1 Corruption Purged . | . . . . . Corruption Blocked . | . . . . . Effects 1 | . . . . 1 Matter Fused 1 | . . . . 1 Overload Shots . | . . . . . Overflow Damage 18 | . . . 15 3 Projectiles . | . . . . . Explosions 18 | . . . 15 3 Melee . | . . . . . Knockbacks . | . . . . . Impact . | . . . . . Kinetic . | . . . . . Secondary . | . . . . . Self-Inflicted Damage 179 | . . . 155 24 Shots 7 | . . . 4 3 Rammed . | . . . . . Targets Rammed . | . . . . . Kicked . | . . . . . Crushed . | . . . . . Highest Temperature 180 | . . 72 72 180 Average Temperature 50 | . . 30 19 113 Received Heat Transfer 1119 | . . 165 378 576 Siege Activations . | . . . . . Robots Corrupted . | . . . . . Combat Hostiles . | . . . . . Parts Fried . | . . . . . Impact Corruptions . | . . . . . Robots Melted 2 | . . . 1 1 Combat Hostiles 2 | . . . 1 1 Parts Melted 3 | . . . 2 1 Heat Transferred 1823 | . 100 275 967 481 Parts Sabotaged . | . . . . . Parts Stolen . | . . . . . Parts Stripped . | . . . . . Power Chain Reactions 3 | . . . 3 . Alert | -11 -10 -10 -9 -8 ------- Run | Yrd Mat Min Mat Mat Peak Influence 523 | . 105 104 523 319 Initial 162 | . . 34 34 162 Average 179 | . 55 58 295 208 Maximum Alert Level 2 | . . . 2 1 Low Security (%) 62 | 100 100 100 31 49 Level 1 25 | . . . 33 50 Level 2 12 | . . . 35 . Level 3 . | . . . . . Level 4 . | . . . . . Level 5 . | . . . . . High Security . | . . . . . Max Security . | . . . . . Squads Dispatched 4 | . 1 . 2 1 Investigation 2 | . 1 . 1 . Extermination . | . . . . . Reinforcement 2 | . . . 1 1 Assault . | . . . . . Garrison . | . . . . . Intercept . | . . . . . Searches Triggered . | . . . . . Construction Impeded . | . . . . . Haulers Reinforced . | . . . . . Active Scanning Responses . | . . . . . Cargo Convoy Interrupts . | . . . . . Stealth | -11 -10 -10 -9 -8 --------- Run | Yrd Mat Min Mat Mat Distress Signals 4 | . . . 1 3 Communications Jammed . | . . . . . Distress Signals . | . . . . . Times Spotted 50 | . 5 4 26 15 Peak Tracking Total 5 | . 3 2 5 5 Tactical Retreats 13 | . 1 1 7 4 Traps | -11 -10 -10 -9 -8 ------- Run | Yrd Mat Min Mat Mat Traps Triggered 3 | . 1 . 1 1 Indirectly . | . . . . . Trap Hack Attempts . | . . . . . Triggered . | . . . . . Disarmed . | . . . . . Reprogrammed . | . . . . . Reused . | . . . . . Traps Extracted . | . . . . . Installed . | . . . . . Triggered . | . . . . . Machines | -11 -10 -10 -9 -8 ---------- Run | Yrd Mat Min Mat Mat Machines Disabled 4 | . . . 2 2 Max in Single Turn 1 | . . . 1 1 Machines Repaired . | . . . . . Machines Dismantled . | . . . . . Machines Sabotaged . | . . . . . Overloaded Fab Kills . | . . . . . Hacking | -11 -10 -10 -9 -8 --------- Run | Yrd Mat Min Mat Mat Machines Accessed 8 | . 4 . 3 1 Terminals 6 | . 2 . 3 1 Fabricators . | . . . . . Repair Stations . | . . . . . Recycling Units 2 | . 2 . . . Scanalyzers . | . . . . . Garrison Access . | . . . . . Total Hacks 29 | . 16 . 7 6 Successful 25 | . 14 . 6 5 Failed 4 | . 2 . 1 1 Catastrophic . | . . . . . Database Lockouts . | . . . . . Manual . | . . . . . Terminals 21 | . 8 . 7 6 Fabricators . | . . . . . Repair Stations . | . . . . . Recycling Units 8 | . 8 . . . Scanalyzers . | . . . . . Garrison Access . | . . . . . Terminal Hacks 18 | . 7 . 6 5 Record 5 | . . . 3 2 Prototype ID Bank 1 | . . . . 1 Branch Access Points 1 | . 1 . . . Emergency Access Points 2 | . . . 1 1 Dispatch Records 1 | . 1 . . . Security Status 1 | . . . 1 . Transport Status 1 | . 1 . . . Assault Status 1 | . 1 . . . Hauler Manifests 1 | . 1 . . . Registered Components 1 | . . . . 1 Zone Layout 3 | . 2 . 1 . Fabricator Hacks . | . . . . . Repair Station Hacks . | . . . . . Recycling Unit Hacks 7 | . 7 . . . Process 1 | . 1 . . . Report Inventory 3 | . 3 . . . Retrieve Matter 2 | . 2 . . . Retrieve Components 1 | . 1 . . . Scanalyzer . | . . . . . Garrison Access Hacks . | . . . . . Unauthorized Hacks . | . . . . . Terminals . | . . . . . Fabricators . | . . . . . Repair Stations . | . . . . . Recycling Units . | . . . . . Scanalyzers . | . . . . . Garrison Access . | . . . . . Data Cores Recovered . | . . . . . Used . | . . . . . Hacking Detections 7 | . 4 . 3 . Full Trace Events 1 | . . . 1 . Feedback Events . | . . . . . Feedback Blocked . | . . . . . Robot Schematics Acquired . | . . . . . Robots Built . | . . . . . Authchips . | . . . . . Time . | . . . . . Total Robot Build Rating . | . . . . . Part Schematics Acquired . | . . . . . Parts Built . | . . . . . Authchips . | . . . . . Time . | . . . . . Total Part Build Rating . | . . . . . Parts Repaired . | . . . . . Time . | . . . . . Parts Recycled . | . . . . . Recycled Matter . | . . . . . Retrieved Matter . | . . . . . Retrieved Components 2 | . 2 . . . Parts Scanalyzed . | . . . . . Part Schematics Acquired . | . . . . . Parts Damaged . | . . . . . Bothacking | -11 -10 -10 -9 -8 ------------ Run | Yrd Mat Min Mat Mat Used RIF Installer . | . . . . . Robots Hacked . | . . . . . Non-combat . | . . . . . Combat . | . . . . . Robot Hacks Applied . | . . . . . Relay Couplers Released . | . . . . . Fabnet Peak Effective % . | . . . . . Robots Rewired . | . . . . . Allies Hacked . | . . . . . Hacks Repelled . | . . . . . Allies | -11 -10 -10 -9 -8 -------- Run | Yrd Mat Min Mat Mat Total Allies . | . . . . . Largest Group . | . . . . . Highest-Rated Group . | . . . . . Highest-Rated Ally . | . . . . . Total Orders . | . . . . . Ally Attacks . | . . . . . Total Damage . | . . . . . Kills . | . . . . . Allies Corrupted . | . . . . . Allies Melted . | . . . . . Intel | -11 -10 -10 -9 -8 ------- Run | Yrd Mat Min Mat Mat Robot Analysis Total . | . . . . . Derelict Logs Recovered 1 | . . 1 . . Drone Launches . | . . . . . Drone Recoveries . | . . . . . Exploration | -11 -10 -10 -9 -8 ------------- Run | Yrd Mat Min Mat Mat Turns Passed 1728 | 69 224 367 613 455 Spaces Moved 986 | 51 155 256 310 214 Core 44 | 10 . . . 34 Treads 188 | . . . 10 178 Legs 754 | 41 155 256 300 2 Wheels . | . . . . . Hover . | . . . . . Flight . | . . . . . Fastest Speed 50 | 50 120 120 120 160 Average Speed 135 | 106 120 120 137 167 Slowest Speed 300 | 120 120 120 200 300 Overloaded Moves . | . . . . . Propulsion Burnouts . | . . . . . Robots Hopped . | . . . . . Cave-ins Triggered . | . . . . . Exploration Rate (%) 28 | 4 29 52 31 26 Regions Visited 4 Branch Regions 1 Pre-discovered Areas 1 | . . 1 . . Known Exits Taken 2 | . 1 . 1 . Unknown Exits Taken 2 | 1 . 1 . . Scrap Searched 1 | . . 1 . . Spaces Dug . | . . . . . Terrain Destroyed 32 | . . . 32 . Melee . | . . . . . Projectile . | . . . . . AOE 32 | . . . 32 . Terrain Rammed . | . . . . . Walls Destroyed . | . . . . . Machines Disabled . | . . . . . Actions | -11 -10 -10 -9 -8 --------- Run | Yrd Mat Min Mat Mat Total 1210 | 66 176 282 414 272 Wait 47 | . 9 6 18 14 Move 982 | 50 154 255 309 214 Hop . | . . . . . Pick Up 33 | 10 3 4 6 10 Fast Attach 1 | . . . 1 . Attach 22 | 6 1 . 10 5 Detach 3 | . . . 2 1 Swap 16 | . 1 . 10 5 Drop 11 | . . . 10 1 Fire 95 | . 8 17 48 22 Melee . | . . . . . Ram . | . . . . . Kick . | . . . . . Crush . | . . . . . Escape Stasis . | . . . . . Rewire . | . . . . . Trap . | . . . . . Miscellaneous . | . . . . . Route ------- -11/Scrapyard -10/Materials (discovered 2 exits: *Min x2) -10/Mines -9/Materials -8/Materials History --------- Turn | Location | Event 3 | -11/Scrapyard | Discovered new exit (range 15) 70 | -11/Scrapyard | Entered Materials 260 | -10/Materials | Identified exit to Mines 294 | -10/Materials | Entered Mines 313 | -10/Mines | Build established: Mutant 383 | -10/Mines | Discovered new exit (range 12) 661 | -10/Mines | Entered Materials 661 | -9/Materials | Evolved 2 slots: Propulsion x1, Utility x1 1103 | -9/Materials | Core integrity fell below 50% 1240 | -9/Materials | Discovered new exit (range 15) 1274 | -9/Materials | Identified exit to Materials 1274 | -9/Materials | Entered another Materials area 1274 | -8/Materials | Evolved 2 slots: Power x1, Propulsion x1 1687 | -8/Materials | Core integrity fell below 50% 1694 | -8/Materials | Lost 8 parts (1p4n3w) 1717 | -8/Materials | Core integrity fell below 20% 1729 | -8/Materials | Destroyed by H-55 Commando with Assault Rifle Last Messages --------------- Slug penetrates U-05 Engineer. U-05 Engineer builds a Door. Penetrated by Slug. Slug penetrates Wall. R-06 Scavenger collects Corrupted Terrain Scanner. Penetrated by Slug. Slug penetrates Wall. H-55 Commando IFF system glitched. Slug penetrates G-50 Soldier. K-01 Serf destroyed. Penetrated by Slug. Cryofiber Web destroyed. Penetrated by Slug. A-02 Transporter destroyed. K-01 Serf collects debris. G-50 Soldier destroyed. Penetrated by Slug. K-01 Serf collects debris. Penetrated by Slug. Map ----- +----------------------------------------------------+ | ??????????# #???????????????????????????????? | | ??????????# #???????????????????????????????? | | ??????????# #???????????????????????????????? | | ??????????# #???????????????????????????????? | | ??????????# #???????????????????????????????? | | ??????????#+######?????#######???????????????????? | | ?????????## ############ ! #???????????????????? | | ?????????# #???????????????????? | | ??????#### T #???????????????????? | | ??????+ % #???????????????????? | | ??????# #####/########## #???????????????????? | | ??????#???# =* #???## h ##???????????????????? | | ??????????# =%= !#????# #????????????????????? | | ??????????# [ #????#g #????????????????????? | | ??????????# #????#%!h#????????????????????? | | ??????????# !!*#????# %[#??#####?????????????? | | ??????????# !* #????# r #?? ??????????????? | | ??????????# " !* #????# #? #?????????????? | | ??????????# "" #????# #?""" #?????????????? | | ??????????# !#????# # """ #?????????????? | | ??????????############### # """ !#?????????????? | | ???????????? + #?????????????? | | ???????????? ########?????????????? | | ???????????? k #????????????????????? | | ?????????????############ =]#????????????????????? | | ????????????????????????#@]%#????????????????????? | | ????????????????????????# !]#????????????????????? | | ????????????????????????# #????????????????????? | | ????????????????????????# #????????????????????? | | ????????????????????????# #????????????????????? | | ????????????????????????# #????????????????????? | | ????????????????????????# #????????????????????? | | ???????????????????????? ????????????????????? | | ???????????????????????? T ????????????????????? | | ???????????????????????? "" ???????????????????? | | ???????????????????????# ???????????????????? | | ???????????????????????# #???????????????????? | | ???????????????????????###?###???????????????????? | | ?????????????????????????????????????????????????? | | ?????????????????????????????????????????????????? | | ?????????????????????????????????????????????????? | | ?????????????????????????????????????????????????? | | ?????????????????????????????????????????????????? | | ?????????????????????????????????????????????????? | | ?????????????????????????????????????????????????? | | ?????????????????????????????????????????????????? | | ?????????????????????????????????????????????????? | | ?????????????????????????????????????????????????? | | ?????????????????????????????????????????????????? | | ?????????????????????????????????????????????????? | +----------------------------------------------------+ Best States ------------- Heat Dissipation 41 Energy Generation 12 Energy Capacity 265 Matter Stores 350 Matter Capacity 350 Sight Range 16 Terrain Scan Density 10 ECM Strength 1 Base Temperature (-) 100 Armor Coverage 150 Resistance: KI 20 Resistance: TH 20 Resistance: EX 20 Resistance: EM 20 Resistance: I 20 Resistance: S 20 Resistance: P 20 Evasion (%) 55 Recoil Reduction 2 Particle Charging 15 Offensive Hacking 10 Item Schematics ----------------- None Robot Schematics ------------------ None Fabricated ------------ Nothing Alien Tech Used ----------------- None Achievements -------------- None Challenges ------------ None Game ------ Seed kekkers Manual? 1 Play Time 00:49:52 Cumulative 2.4 hours Start 2024.09.14 @ 22:14:00 End 2024.09.14 @ 23:40:56 Sessions 1 Manual Loads 0 Difficulty Adventurer Special Mode None Game No. 4 Rogue 0 Adventurer 4 Explorer 0 Win Type - Total 0 Types 0/0/0/0/0/0/0/0/0 Lore% 1 Gallery% 4 Achievement% 5 Wizard Run 0 Options --------- Layout 1 ASCII 0 Keyboard 0 Movement Mouse Keybinds 0 Fullscreen 2 Font 24/Smallcaps Map View 50x35 Zoom Use 0% Tactical HUD 0 Map Filters NONE Filters NONE Steam 1 RUN: 2ffc36f7-eea7-4b8b-ad46-2c536a666034